[Event "*** SCC Grand Prix: Titled Tuesday Blitz"]
[Site "Chess.com"]
[Date "2020.07.14"]
[Round "5"]
[White "Titus369"]
[Black "Manukyan_Artak"]
[Result "1/2-1/2"]
[WhiteElo "2526"]
[BlackElo "2369"]
[TimeControl "180+1"]
[EndTime "10:57:10 PDT"]
[Termination "Game drawn - insufficient material"]

1. e4 {[%clk 0:03:00.9]} 1... c6 {[%clk 0:02:59.7]} 2. d4 {[%clk 0:03:00.3]}
2... d5 {[%clk 0:02:59.4]} 3. Nd2 {[%clk 0:03:00]} 3... dxe4 {[%clk 0:02:58.2]}
4. Nxe4 {[%clk 0:03:00.9]} 4... Nf6 {[%clk 0:02:59]} 5. Nxf6+ {[%clk 0:03:00.7]}
5... exf6 {[%clk 0:02:57.6]} 6. Be3 {[%clk 0:02:59.8]} 6... Bd6 {[%clk
0:02:57.5]} 7. Bd3 {[%clk 0:02:59.9]} 7... O-O {[%clk 0:02:57.6]} 8. Ne2 {[%clk
0:03:00.4]} 8... Qc7 {[%clk 0:02:56.9]} 9. c3 {[%clk 0:03:00.8]} 9... c5 {[%clk
0:02:51.8]} 10. Qc2 {[%clk 0:02:58.4]} 10... h5 {[%clk 0:02:48.9]} 11. O-O-O
{[%clk 0:02:54.2]} 11... c4 {[%clk 0:02:46.5]} 12. Bf5 {[%clk 0:02:50.1]} 12...
Nc6 {[%clk 0:02:42.1]} 13. Ng3 {[%clk 0:02:36.1]} 13... h4 {[%clk 0:02:35]} 14.
Bxc8 {[%clk 0:02:33.5]} 14... Raxc8 {[%clk 0:02:18.3]} 15. Nf5 {[%clk
0:02:30.8]} 15... b5 {[%clk 0:02:10.6]} 16. Nxh4 {[%clk 0:02:15.8]} 16... b4
{[%clk 0:01:59.9]} 17. Nf5 {[%clk 0:02:13.8]} 17... b3 {[%clk 0:01:56.2]} 18.
axb3 {[%clk 0:02:06.3]} 18... cxb3 {[%clk 0:01:57.1]} 19. Qe4 {[%clk 0:01:55.6]}
19... Rfe8 {[%clk 0:01:45.7]} 20. Qg4 {[%clk 0:01:52.3]} 20... g6 {[%clk
0:01:40.4]} 21. h4 {[%clk 0:01:47.1]} 21... Ne7 {[%clk 0:01:28.4]} 22. Nxd6
{[%clk 0:01:26.7]} 22... Qxd6 {[%clk 0:01:27.7]} 23. h5 {[%clk 0:01:25]} 23...
g5 {[%clk 0:01:18.3]} 24. h6 {[%clk 0:01:10.4]} 24... Nd5 {[%clk 0:01:08.8]} 25.
Bxg5 {[%clk 0:00:55.6]} 25... fxg5 {[%clk 0:01:07.1]} 26. Qxg5+ {[%clk
0:00:56.5]} 26... Qg6 {[%clk 0:01:05.7]} 27. Qxg6+ {[%clk 0:00:19.8]} 27... fxg6
{[%clk 0:01:06.6]} 28. Rhe1 {[%clk 0:00:16.9]} 28... Nf4 {[%clk 0:00:53.3]} 29.
Kd2 {[%clk 0:00:11.5]} 29... Nxg2 {[%clk 0:00:48.4]} 30. Rxe8+ {[%clk
0:00:05.9]} 30... Rxe8 {[%clk 0:00:49.3]} 31. Ra1 {[%clk 0:00:06]} 31... Re7
{[%clk 0:00:46.4]} 32. Ra6 {[%clk 0:00:03.7]} 32... Kh7 {[%clk 0:00:43.7]} 33.
d5 {[%clk 0:00:03.4]} 33... Nf4 {[%clk 0:00:31.8]} 34. c4 {[%clk 0:00:03.7]}
34... Re2+ {[%clk 0:00:20.4]} 35. Kc3 {[%clk 0:00:03.8]} 35... Rxf2 {[%clk
0:00:20.5]} 36. d6 {[%clk 0:00:03.7]} 36... Ne2+ {[%clk 0:00:16.5]} 37. Kxb3
{[%clk 0:00:03.5]} 37... Nc1+ {[%clk 0:00:16.4]} 38. Kc3 {[%clk 0:00:03.5]}
38... Rf8 {[%clk 0:00:13.4]} 39. Kc2 {[%clk 0:00:03.8]} 39... Ne2 {[%clk
0:00:13.4]} 40. c5 {[%clk 0:00:04.6]} 40... g5 {[%clk 0:00:12.6]} 41. Rxa7+
{[%clk 0:00:05]} 41... Kxh6 {[%clk 0:00:12.3]} 42. c6 {[%clk 0:00:05.5]} 42...
Nd4+ {[%clk 0:00:12.4]} 43. Kd3 {[%clk 0:00:05.7]} 43... Nxc6 {[%clk 0:00:13.3]}
44. Ra6 {[%clk 0:00:06.3]} 44... Ne5+ {[%clk 0:00:13.1]} 45. Ke4 {[%clk
0:00:06.4]} 45... Nd7 {[%clk 0:00:12.7]} 46. Ra7 {[%clk 0:00:06.2]} 46... Rf7
{[%clk 0:00:12.6]} 47. Kd4 {[%clk 0:00:05.1]} 47... g4 {[%clk 0:00:12.6]} 48.
Ra8 {[%clk 0:00:04.1]} 48... g3 {[%clk 0:00:12.2]} 49. Rg8 {[%clk 0:00:04.1]}
49... Rg7 {[%clk 0:00:11.3]} 50. Rxg7 {[%clk 0:00:04.5]} 50... Kxg7 {[%clk
0:00:11.7]} 51. Ke3 {[%clk 0:00:05.1]} 51... Kf6 {[%clk 0:00:11.2]} 52. Kf3
{[%clk 0:00:05.4]} 52... Ke5 {[%clk 0:00:11.3]} 53. Kxg3 {[%clk 0:00:05.7]}
53... Kxd6 {[%clk 0:00:12.2]} 54. Kf2 {[%clk 0:00:06.4]} 54... Kc5 {[%clk
0:00:13.1]} 55. Ke3 {[%clk 0:00:07.3]} 55... Kb4 {[%clk 0:00:14]} 56. Kd2 {[%clk
0:00:08.2]} 56... Kb3 {[%clk 0:00:14.8]} 57. Kc1 {[%clk 0:00:09.1]} 57... Nc5
{[%clk 0:00:15.2]} 58. Kb1 {[%clk 0:00:10]} 58... Na4 {[%clk 0:00:16.1]} 59. Kc1
{[%clk 0:00:10.9]} 59... Nxb2 {[%clk 0:00:17]} 1/2-1/2

[Event "*** SCC Grand Prix: Titled Tuesday Blitz"]
[Site "Chess.com"]
[Date "2020.07.14"]
[Round "5"]
[White "Jumbo"]
[Black "aliba25"]
[Result "1-0"]
[WhiteElo "2862"]
[BlackElo "2603"]
[TimeControl "180+1"]
[EndTime "10:57:12 PDT"]
[Termination "Jumbo won by resignation"]

1. d4 {[%clk 0:03:00.9]} 1... Nf6 {[%clk 0:02:58.2]} 2. Bf4 {[%clk 0:03:00.7]}
2... g6 {[%clk 0:02:57.8]} 3. e3 {[%clk 0:03:00.1]} 3... Bg7 {[%clk 0:02:57.8]}
4. Nf3 {[%clk 0:03:00.4]} 4... O-O {[%clk 0:02:58.5]} 5. Be2 {[%clk 0:02:58.9]}
5... d6 {[%clk 0:02:59]} 6. h3 {[%clk 0:02:39.2]} 6... Nc6 {[%clk 0:02:58.4]} 7.
O-O {[%clk 0:02:37.2]} 7... Nd7 {[%clk 0:02:54.7]} 8. Bh2 {[%clk 0:02:33.7]}
8... e5 {[%clk 0:02:54.4]} 9. a4 {[%clk 0:02:02.3]} 9... f5 {[%clk 0:02:50.7]}
10. a5 {[%clk 0:01:59]} 10... a6 {[%clk 0:02:49.7]} 11. c3 {[%clk 0:01:53.1]}
11... Kh8 {[%clk 0:02:47.4]} 12. b4 {[%clk 0:01:51.2]} 12... Qe7 {[%clk
0:02:10.8]} 13. Na3 {[%clk 0:01:46.7]} 13... f4 {[%clk 0:01:58.1]} 14. exf4
{[%clk 0:01:36.1]} 14... exd4 {[%clk 0:01:54.4]} 15. Nxd4 {[%clk 0:01:36]} 15...
Bxd4 {[%clk 0:01:21.5]} 16. cxd4 {[%clk 0:01:36.9]} 16... Nxb4 {[%clk
0:01:22.2]} 17. Bf3 {[%clk 0:01:23.6]} 17... Qf7 {[%clk 0:01:14]} 18. Nc2 {[%clk
0:00:27.4]} 18... Nd5 {[%clk 0:01:07.1]} 19. Bxd5 {[%clk 0:00:24.9]} 19... Qxd5
{[%clk 0:01:06.8]} 20. Ne3 {[%clk 0:00:25.4]} 20... Qf7 {[%clk 0:00:59]} 21. Rc1
{[%clk 0:00:23.7]} 21... Nf6 {[%clk 0:00:51.8]} 22. d5 {[%clk 0:00:24.1]} 22...
Nh5 {[%clk 0:00:51.7]} 23. Qd4+ {[%clk 0:00:23.1]} 23... Kg8 {[%clk 0:00:48]}
24. Rc4 {[%clk 0:00:23]} 24... Re8 {[%clk 0:00:24.5]} 25. Rfc1 {[%clk 0:00:23]}
25... Re7 {[%clk 0:00:24.9]} 26. g4 {[%clk 0:00:14.7]} 26... Ng7 {[%clk
0:00:23.4]} 27. Bg3 {[%clk 0:00:14.7]} 27... h5 {[%clk 0:00:20.6]} 28. Bh4
{[%clk 0:00:15.1]} 28... Rd7 {[%clk 0:00:17]} 29. Bg5 {[%clk 0:00:14.4]} 29...
c5 {[%clk 0:00:13.4]} 30. dxc6 {[%clk 0:00:13.9]} 30... bxc6 {[%clk 0:00:13.9]}
31. Rxc6 {[%clk 0:00:14.4]} 31... Bb7 {[%clk 0:00:14.4]} 32. Rxd6 {[%clk
0:00:14.2]} 32... Rxd6 {[%clk 0:00:13.1]} 33. Qxd6 {[%clk 0:00:15.1]} 33... Ne6
{[%clk 0:00:07]} 34. Qe5 {[%clk 0:00:13]} 34... Re8 {[%clk 0:00:05.7]} 35. Bh6
{[%clk 0:00:12.9]} 35... Nf8 {[%clk 0:00:03.2]} 36. Qc7 {[%clk 0:00:10.9]} 36...
Re7 {[%clk 0:00:03.5]} 37. Qd6 {[%clk 0:00:10]} 37... Rd7 {[%clk 0:00:02.1]} 38.
Qxf8+ {[%clk 0:00:09.4]} 38... Qxf8 {[%clk 0:00:02]} 39. Bxf8 {[%clk 0:00:10.3]}
39... Kxf8 {[%clk 0:00:02.9]} 40. Kh2 {[%clk 0:00:10.4]} 40... Kf7 {[%clk
0:00:03]} 41. Kg3 {[%clk 0:00:10.9]} 41... hxg4 {[%clk 0:00:03.5]} 42. hxg4
{[%clk 0:00:10.7]} 42... Be4 {[%clk 0:00:04.1]} 43. Rc5 {[%clk 0:00:11]} 43...
Bd3 {[%clk 0:00:04.4]} 44. Re5 {[%clk 0:00:11.2]} 44... Bb5 {[%clk 0:00:04.5]}
45. Kh4 {[%clk 0:00:11.1]} 45... Rd4 {[%clk 0:00:04.8]} 46. Kg5 {[%clk
0:00:10.5]} 46... Ra4 {[%clk 0:00:04.7]} 47. f5 {[%clk 0:00:10.3]} 47... gxf5
{[%clk 0:00:04.6]} 48. Nxf5 {[%clk 0:00:10.8]} 48... Rxa5 {[%clk 0:00:03.9]} 49.
Nd6+ {[%clk 0:00:11.3]} 49... Kf8 {[%clk 0:00:04.2]} 50. f4 {[%clk 0:00:11.8]}
50... Ra4 {[%clk 0:00:02.1]} 51. Nxb5 {[%clk 0:00:11.5]} 51... axb5 {[%clk
0:00:02.5]} 52. Rxb5 {[%clk 0:00:12.1]} 1-0

[Event "*** SCC Grand Prix: Titled Tuesday Blitz"]
[Site "Chess.com"]
[Date "2020.07.14"]
[Round "5"]
[White "reniite"]
[Black "Michaelson_11"]
[Result "0-1"]
[WhiteElo "1900"]
[BlackElo "2109"]
[TimeControl "180+1"]
[EndTime "10:57:13 PDT"]
[Termination "Michaelson_11 won by resignation"]

1. e4 {[%clk 0:03:00.9]} 1... c5 {[%clk 0:02:59.6]} 2. Nf3 {[%clk 0:02:59]} 2...
Nc6 {[%clk 0:02:59.9]} 3. d4 {[%clk 0:02:59.3]} 3... cxd4 {[%clk 0:03:00.8]} 4.
Nxd4 {[%clk 0:02:58.6]} 4... g6 {[%clk 0:03:01.7]} 5. Nc3 {[%clk 0:02:58.1]}
5... Bg7 {[%clk 0:03:01.9]} 6. Nde2 {[%clk 0:02:58.6]} 6... Nf6 {[%clk
0:03:00.9]} 7. g3 {[%clk 0:02:59.1]} 7... O-O {[%clk 0:03:01.4]} 8. Bg2 {[%clk
0:02:45.9]} 8... d6 {[%clk 0:03:00.7]} 9. O-O {[%clk 0:02:46.1]} 9... Bg4 {[%clk
0:02:52.3]} 10. h3 {[%clk 0:02:43]} 10... Bd7 {[%clk 0:02:46]} 11. Nd5 {[%clk
0:02:37.7]} 11... Rc8 {[%clk 0:02:41]} 12. Be3 {[%clk 0:02:25.7]} 12... b6
{[%clk 0:02:36.3]} 13. Rc1 {[%clk 0:02:03.8]} 13... Ne5 {[%clk 0:02:08.7]} 14.
b3 {[%clk 0:01:59]} 14... Bc6 {[%clk 0:02:05.9]} 15. c4 {[%clk 0:01:46.7]} 15...
Ned7 {[%clk 0:01:48]} 16. Nd4 {[%clk 0:01:40.7]} 16... Bb7 {[%clk 0:01:40.5]}
17. Kh2 {[%clk 0:01:27.4]} 17... Nc5 {[%clk 0:01:37.8]} 18. f3 {[%clk
0:01:12.5]} 18... a5 {[%clk 0:01:27.6]} 19. Re1 {[%clk 0:01:09.8]} 19... Nfd7
{[%clk 0:01:20.7]} 20. Bf2 {[%clk 0:01:06.1]} 20... e6 {[%clk 0:01:12.4]} 21.
Nc3 {[%clk 0:00:52.7]} 21... h5 {[%clk 0:01:10.4]} 22. f4 {[%clk 0:00:44.8]}
22... e5 {[%clk 0:01:07.6]} 23. f5 {[%clk 0:00:05.5]} 23... exd4 {[%clk
0:01:05.2]} 24. Bxd4 {[%clk 0:00:06.4]} 24... Ne5 {[%clk 0:00:58.3]} 25. fxg6
{[%clk 0:00:05.7]} 25... fxg6 {[%clk 0:00:57.5]} 26. Nb5 {[%clk 0:00:06.5]}
26... Ncd3 {[%clk 0:00:56.8]} 27. Bxe5 {[%clk 0:00:05.6]} 27... Nxe5 {[%clk
0:00:27.5]} 28. Nxd6 {[%clk 0:00:05.5]} 28... Rc7 {[%clk 0:00:26.8]} 29. c5
{[%clk 0:00:03.9]} 29... bxc5 {[%clk 0:00:26.5]} 30. Nxb7 {[%clk 0:00:02.6]}
30... Rxb7 {[%clk 0:00:27.4]} 31. Qd5+ {[%clk 0:00:01.9]} 31... Qxd5 {[%clk
0:00:24.5]} 32. exd5 {[%clk 0:00:02.6]} 32... Nd3 {[%clk 0:00:25.4]} 33. d6
{[%clk 0:00:03.2]} 33... Rd7 {[%clk 0:00:22.2]} 34. Re7 {[%clk 0:00:03.6]} 34...
Rxe7 {[%clk 0:00:16.9]} 35. dxe7 {[%clk 0:00:04.4]} 35... Nxc1 {[%clk
0:00:17.7]} 36. exf8=Q+ {[%clk 0:00:04.3]} 36... Kxf8 {[%clk 0:00:18.6]} 37. Bd5
{[%clk 0:00:04.2]} 37... Nxa2 {[%clk 0:00:18.3]} 38. b4 {[%clk 0:00:04.7]} 38...
Nxb4 {[%clk 0:00:18.6]} 39. Bb3 {[%clk 0:00:05.2]} 39... Ke7 {[%clk 0:00:18.6]}
40. g4 {[%clk 0:00:05.7]} 40... hxg4 {[%clk 0:00:18]} 41. hxg4 {[%clk
0:00:06.6]} 41... g5 {[%clk 0:00:18.2]} 42. Kg3 {[%clk 0:00:07.5]} 42... Kd6
{[%clk 0:00:18.3]} 43. Kf3 {[%clk 0:00:08.4]} 43... Ke5 {[%clk 0:00:18.8]} 44.
Ke3 {[%clk 0:00:08.8]} 44... Bf8 {[%clk 0:00:17.6]} 45. Kd2 {[%clk 0:00:09.2]}
45... Kd4 {[%clk 0:00:17.6]} 46. Kc1 {[%clk 0:00:09.1]} 46... c4 {[%clk
0:00:18.5]} 47. Ba4 {[%clk 0:00:09.2]} 47... Bd6 {[%clk 0:00:17.2]} 48. Bb5
{[%clk 0:00:09.5]} 48... c3 {[%clk 0:00:16.7]} 49. Ba4 {[%clk 0:00:09.6]} 49...
Bf4+ {[%clk 0:00:15.6]} 50. Kb1 {[%clk 0:00:08.9]} 50... Ke3 {[%clk 0:00:15.9]}
51. Ka1 {[%clk 0:00:07.9]} 51... Kd2 {[%clk 0:00:16]} 52. Kb1 {[%clk 0:00:07.7]}
52... c2+ {[%clk 0:00:16]} 53. Bxc2 {[%clk 0:00:07.7]} 53... Nxc2 {[%clk
0:00:15.7]} 54. Kb2 {[%clk 0:00:08.2]} 54... Nd4 {[%clk 0:00:14.6]} 55. Ka3
{[%clk 0:00:08.3]} 55... Ke3 {[%clk 0:00:14.8]} 56. Ka4 {[%clk 0:00:08.1]} 56...
Kf3 {[%clk 0:00:15.7]} 57. Kxa5 {[%clk 0:00:09]} 57... Kxg4 {[%clk 0:00:16.6]}
58. Kb6 {[%clk 0:00:09.3]} 58... Kf3 {[%clk 0:00:17.5]} 59. Kc5 {[%clk
0:00:09.3]} 59... g4 {[%clk 0:00:18.4]} 60. Kxd4 {[%clk 0:00:09.6]} 60... g3
{[%clk 0:00:19.3]} 61. Kd3 {[%clk 0:00:10.3]} 61... g2 {[%clk 0:00:20.2]} 0-1

[Event "*** SCC Grand Prix: Titled Tuesday Blitz"]
[Site "Chess.com"]
[Date "2020.07.14"]
[Round "5"]
[White "nrvisakh"]
[Black "keepitcool9499"]
[Result "1-0"]
[WhiteElo "2778"]
[BlackElo "2557"]
[TimeControl "180+1"]
[EndTime "10:57:14 PDT"]
[Termination "nrvisakh won by resignation"]

1. e4 {[%clk 0:03:00.9]} 1... e6 {[%clk 0:03:00.9]} 2. d4 {[%clk 0:03:00.6]}
2... d5 {[%clk 0:03:01.3]} 3. e5 {[%clk 0:03:00.7]} 3... c5 {[%clk 0:03:01.1]}
4. c3 {[%clk 0:03:01.1]} 4... Nc6 {[%clk 0:03:01.7]} 5. Nf3 {[%clk 0:03:01.4]}
5... Bd7 {[%clk 0:03:02.2]} 6. Bd3 {[%clk 0:02:58.9]} 6... f5 {[%clk 0:03:02.5]}
7. exf6 {[%clk 0:02:54.1]} 7... Nxf6 {[%clk 0:03:02.6]} 8. O-O {[%clk 0:02:55]}
8... Bd6 {[%clk 0:03:02.5]} 9. Qe2 {[%clk 0:02:54.9]} 9... O-O {[%clk
0:03:02.7]} 10. Nbd2 {[%clk 0:02:52]} 10... Qc7 {[%clk 0:03:02.7]} 11. Bb5
{[%clk 0:02:43.3]} 11... Rae8 {[%clk 0:03:00.1]} 12. Bxc6 {[%clk 0:02:42.8]}
12... Bxc6 {[%clk 0:03:01]} 13. Ne5 {[%clk 0:02:42.5]} 13... Bxe5 {[%clk
0:02:52.7]} 14. dxe5 {[%clk 0:02:30.1]} 14... Ne4 {[%clk 0:02:51.2]} 15. f3
{[%clk 0:02:21.3]} 15... Nxd2 {[%clk 0:02:45.6]} 16. Bxd2 {[%clk 0:02:21.1]}
16... a6 {[%clk 0:02:45.6]} 17. Rfe1 {[%clk 0:02:18.1]} 17... Rf5 {[%clk
0:02:42.9]} 18. Qf2 {[%clk 0:02:07]} 18... Ref8 {[%clk 0:02:40.4]} 19. Qxc5
{[%clk 0:02:01.9]} 19... Rxe5 {[%clk 0:02:39.6]} 20. Rxe5 {[%clk 0:02:01.8]}
20... Qxe5 {[%clk 0:02:39.6]} 21. Re1 {[%clk 0:02:02.3]} 21... Qf6 {[%clk
0:02:33]} 22. Qd6 {[%clk 0:01:58.2]} 22... Re8 {[%clk 0:02:31.8]} 23. Bf4 {[%clk
0:01:57.7]} 23... Qe7 {[%clk 0:02:30.2]} 24. Qe5 {[%clk 0:01:53.7]} 24... Qf6
{[%clk 0:02:29.5]} 25. Qe3 {[%clk 0:01:52.3]} 25... h6 {[%clk 0:02:25.8]} 26. h3
{[%clk 0:01:50.7]} 26... Qf5 {[%clk 0:02:11.9]} 27. Kh2 {[%clk 0:01:49.6]} 27...
Kh7 {[%clk 0:02:10]} 28. Bg3 {[%clk 0:01:49]} 28... Qg6 {[%clk 0:02:08.7]} 29.
a3 {[%clk 0:01:48.5]} 29... Bd7 {[%clk 0:02:06.7]} 30. Qd2 {[%clk 0:01:43]}
30... Bc6 {[%clk 0:02:04.2]} 31. Re5 {[%clk 0:01:42.3]} 31... Rf8 {[%clk
0:01:59.8]} 32. h4 {[%clk 0:01:30.7]} 32... Rf5 {[%clk 0:01:58.2]} 33. Re1
{[%clk 0:01:30.2]} 33... Qf6 {[%clk 0:01:47.3]} 34. Qd4 {[%clk 0:01:23.1]} 34...
Qxd4 {[%clk 0:01:38.1]} 35. cxd4 {[%clk 0:01:22.8]} 35... Bd7 {[%clk 0:01:38.5]}
36. Rc1 {[%clk 0:01:19.6]} 36... Bc6 {[%clk 0:01:37.8]} 37. Be5 {[%clk
0:01:19.6]} 37... Rf8 {[%clk 0:01:36.3]} 38. Kg3 {[%clk 0:01:19]} 38... Rc8
{[%clk 0:01:36.6]} 39. Kf4 {[%clk 0:01:13.6]} 39... Kg6 {[%clk 0:01:36.7]} 40.
g4 {[%clk 0:01:11.7]} 40... Kf7 {[%clk 0:01:35.6]} 41. Rc3 {[%clk 0:00:58.7]}
41... Bd7 {[%clk 0:01:14.7]} 42. Bc7 {[%clk 0:00:57.1]} 42... Bc6 {[%clk
0:01:13]} 43. Bd6 {[%clk 0:00:46.1]} 43... Kf6 {[%clk 0:01:07.5]} 44. h5 {[%clk
0:00:43.9]} 44... g5+ {[%clk 0:01:02.6]} 45. hxg6 {[%clk 0:00:43]} 45... Kxg6
{[%clk 0:01:03.5]} 46. Ke5 {[%clk 0:00:41.7]} 46... Re8 {[%clk 0:01:00]} 47. f4
{[%clk 0:00:38]} 47... h5 {[%clk 0:00:56.7]} 48. gxh5+ {[%clk 0:00:37.4]} 48...
Kxh5 {[%clk 0:00:56.3]} 49. Rg3 {[%clk 0:00:38.3]} 49... Kh4 {[%clk 0:00:48.4]}
50. Rg7 {[%clk 0:00:37.9]} 50... Kh5 {[%clk 0:00:44.4]} 51. Be7 {[%clk
0:00:37.6]} 51... Kh6 {[%clk 0:00:24.6]} 52. Bf6 {[%clk 0:00:37.3]} 52... Kh5
{[%clk 0:00:13.1]} 53. Bg5 {[%clk 0:00:37]} 53... Kg4 {[%clk 0:00:12.1]} 54. b4
{[%clk 0:00:24.1]} 54... Kf3 {[%clk 0:00:10.9]} 55. Bh4 {[%clk 0:00:23.1]} 55...
Ke3 {[%clk 0:00:09]} 56. Rg3+ {[%clk 0:00:22.8]} 56... Kd2 {[%clk 0:00:09.5]}
57. Bf6 {[%clk 0:00:21.7]} 57... Kc2 {[%clk 0:00:08.3]} 58. Kd6 {[%clk
0:00:21.7]} 58... Rf8 {[%clk 0:00:07.1]} 59. Kxe6 {[%clk 0:00:19.5]} 59... Rg8
{[%clk 0:00:05.5]} 60. Rxg8 {[%clk 0:00:18.5]} 1-0

[Event "*** SCC Grand Prix: Titled Tuesday Blitz"]
[Site "Chess.com"]
[Date "2020.07.14"]
[Round "5"]
[White "albano87"]
[Black "ENajer77"]
[Result "1-0"]
[WhiteElo "2479"]
[BlackElo "2687"]
[TimeControl "180+1"]
[EndTime "10:57:14 PDT"]
[Termination "albano87 won on time"]

1. d4 {[%clk 0:03:00.9]} 1... Nf6 {[%clk 0:02:12.4]} 2. Nf3 {[%clk 0:03:01.8]}
2... e6 {[%clk 0:02:11.7]} 3. g3 {[%clk 0:03:00.4]} 3... b5 {[%clk 0:02:07.3]}
4. Bg2 {[%clk 0:02:57]} 4... Bb7 {[%clk 0:02:04.7]} 5. O-O {[%clk 0:02:54.8]}
5... Be7 {[%clk 0:02:03.7]} 6. a4 {[%clk 0:02:53.8]} 6... b4 {[%clk 0:02:03.2]}
7. c4 {[%clk 0:02:51.9]} 7... a5 {[%clk 0:02:01.5]} 8. b3 {[%clk 0:02:43.9]}
8... O-O {[%clk 0:02:01]} 9. Bb2 {[%clk 0:02:17.8]} 9... d5 {[%clk 0:01:58.3]}
10. Ne5 {[%clk 0:02:14.7]} 10... Qc8 {[%clk 0:01:56.5]} 11. Nd2 {[%clk
0:02:11.3]} 11... Nfd7 {[%clk 0:01:50.4]} 12. cxd5 {[%clk 0:02:04.9]} 12... exd5
{[%clk 0:01:40.1]} 13. Ndf3 {[%clk 0:02:01.6]} 13... Bd6 {[%clk 0:01:28.1]} 14.
Rc1 {[%clk 0:01:59.2]} 14... f6 {[%clk 0:01:27.9]} 15. Nd3 {[%clk 0:01:55.3]}
15... Kh8 {[%clk 0:01:17.7]} 16. Qd2 {[%clk 0:01:54.2]} 16... Nc6 {[%clk
0:01:16.1]} 17. Rc2 {[%clk 0:01:48.8]} 17... Ne7 {[%clk 0:01:09.5]} 18. Rfc1
{[%clk 0:01:47.9]} 18... Ba6 {[%clk 0:00:54.3]} 19. Nc5 {[%clk 0:01:43.8]} 19...
Re8 {[%clk 0:00:41.7]} 20. e3 {[%clk 0:01:41.1]} 20... Bxc5 {[%clk 0:00:35.5]}
21. dxc5 {[%clk 0:01:42]} 21... c6 {[%clk 0:00:36.1]} 22. Bh3 {[%clk 0:01:40.8]}
22... Qc7 {[%clk 0:00:33.4]} 23. Nd4 {[%clk 0:01:24.8]} 23... Ne5 {[%clk
0:00:31.1]} 24. Ra1 {[%clk 0:01:17.3]} 24... Bc8 {[%clk 0:00:24.5]} 25. Bg2
{[%clk 0:01:13.3]} 25... Nf5 {[%clk 0:00:23.4]} 26. Rcc1 {[%clk 0:01:12.2]}
26... Nxd4 {[%clk 0:00:22.2]} 27. Bxd4 {[%clk 0:01:05.7]} 27... Bf5 {[%clk
0:00:21.2]} 28. Qe2 {[%clk 0:01:01.9]} 28... Rad8 {[%clk 0:00:18]} 29. Rd1
{[%clk 0:00:57.6]} 29... Qc8 {[%clk 0:00:17.6]} 30. Rac1 {[%clk 0:00:53.6]}
30... Bg4 {[%clk 0:00:17.2]} 31. f3 {[%clk 0:00:49.2]} 31... Bh5 {[%clk
0:00:17.1]} 32. g4 {[%clk 0:00:49.5]} 32... Bg6 {[%clk 0:00:15.3]} 33. h3 {[%clk
0:00:45.5]} 33... Bf7 {[%clk 0:00:10.2]} 34. Qf2 {[%clk 0:00:45.8]} 34... Kg8
{[%clk 0:00:09.2]} 35. f4 {[%clk 0:00:40]} 35... Nd7 {[%clk 0:00:07.8]} 36. Qg3
{[%clk 0:00:39.4]} 36... Kh8 {[%clk 0:00:06.3]} 37. h4 {[%clk 0:00:35.8]} 37...
Rg8 {[%clk 0:00:05.6]} 38. g5 {[%clk 0:00:31.7]} 38... Rdf8 {[%clk 0:00:04]} 39.
e4 {[%clk 0:00:27.5]} 39... dxe4 {[%clk 0:00:03.3]} 40. Bxe4 {[%clk 0:00:27.4]}
40... Bg6 {[%clk 0:00:02.3]} 41. Bxg6 {[%clk 0:00:22.1]} 41... hxg6 {[%clk
0:00:03.2]} 42. Bb2 {[%clk 0:00:23]} 42... Rd8 {[%clk 0:00:02.3]} 43. h5 {[%clk
0:00:19.5]} 43... gxh5 {[%clk 0:00:02]} 44. Qh3 {[%clk 0:00:16.8]} 44... g6
{[%clk 0:00:02.2]} 45. gxf6 {[%clk 0:00:16.2]} 45... Kh7 {[%clk 0:00:02.4]} 46.
f7 {[%clk 0:00:12.9]} 46... Rgf8 {[%clk 0:00:02.2]} 47. f5 {[%clk 0:00:09.3]}
1-0